fUSD/lending_fUSD_20240725
["ID","MTS","AMOUNT","RATE_DAILY","PERIOD"]
[333171379,1721912048297,-97848.15347642,0.00011781,7]
[333171385,1721912168778,-45000.0,0.00011781,7]
[333171390,1721913026937,-4593.89527838,0.0001,5]
[333171413,1721913032152,-823.72791669,8.219e-05,2]
[333171415,1721913032164,-71.75208331,8.219e-05,2]
[333171416,1721913032173,-1940.543876,9.209e-05,2]
[333171417,1721913032185,-1284.315848,9.209e-05,2]
[333171418,1721913032221,-6728.94505261,9.209e-05,2]
[333171419,1721913032234,-5301.61522339,9.209e-05,2]
[333171420,1721913032244,-887.35649619,9.209e-05,2]
[333171421,1721913032253,-2000.0,9.211e-05,2]
[333171422,1721913032263,-923.81,9.212e-05,2]
[333171423,1721913032273,-181.44,9.906e-05,2]
[333171424,1721913032283,-181.44,9.908e-05,2]
[333171425,1721913032292,-181.44,9.911e-05,2]
[333171426,1721913032301,-181.44,9.913e-05,2]
[333171427,1721913032311,-181.44,9.916e-05,2]
[333171428,1721913032320,-181.44,9.919e-05,2]
[333171429,1721913032329,-169.56,9.919e-05,2]
[333171430,1721913032339,-499.99,9.919e-05,2]
[333171431,1721913032348,-1350.22,9.919e-05,2]
[333171432,1721913032358,-181.44,9.921e-05,2]
[333171433,1721913032367,-181.44,9.924e-05,2]
[333171434,1721913032376,-181.44,9.926e-05,2]
[333171435,1721913032385,-181.44,9.929e-05,2]
[333171436,1721913032394,-1000.0,9.931e-05,2]
[333171437,1721913032403,-181.44,9.932e-05,2]
[333171438,1721913032412,-181.44,9.934e-05,2]
[333171439,1721913032422,-181.44,9.937e-05,2]
[333171440,1721913032431,-181.44,9.939e-05,2]
[333171441,1721913032440,-181.44,9.942e-05,2]
[333171442,1721913032449,-181.44,9.945e-05,2]
[333171443,1721913032458,-181.44,9.947e-05,2]
[333171444,1721913032471,-181.44,9.95e-05,2]
[333171445,1721913032480,-150.0,9.952e-05,2]
[333171446,1721913032489,-181.44,9.952e-05,2]
[333171447,1721913032498,-181.44,9.955e-05,2]
[333171448,1721913032508,-5344.0205595,0.0001,5]
[333171449,1721913032517,-411.14,0.00010378,2]
[333171450,1721913032526,-530.01,0.00010378,2]
[333171451,1721913032539,-530.01,0.00010378,2]
[333171452,1721913032549,-530.01,0.00010378,2]
[333171453,1721913032558,-530.01,0.00010378,2]
[333171454,1721913032567,-530.01,0.00010378,2]
[333171455,1721913032577,-530.01,0.00010378,2]
[333171456,1721913032586,-895.48,0.00010436,2]
[333171457,1721913032596,-349.29,0.00010552,2]
[333171458,1721913032605,-611.2573,0.00010681,2]
[333171459,1721913032615,-3250.2608,0.00010681,2]
[333171460,1721913032624,-2100.0,0.00010684,2]
[333171461,1721913032634,-1000.0,0.00010746,2]
[333171462,1721913032643,-1065.78583237,0.0001076,2]
[333171463,1721913032653,-1129.09240437,0.0001076,2]
[333171464,1721913032662,-4542.2437,0.0001077,2]
[333171465,1721913032672,-251.3355033,0.0001078,2]
[333171466,1721913032681,-129441.0,0.0001078,2]
[333171467,1721913032690,-1000.0,0.00010789,2]
[333171468,1721913032699,-6516.90755163,0.000108,2]
[333171469,1721913032709,-13959.10492297,0.000108,2]
[333171470,1721913032765,-1344.78568796,0.000108,2]
[333171471,1721913032776,-905.39548907,0.000108,2]
[333171472,1721913032792,-267.84720901,0.00010879,2]
[333171473,1721913032802,-247.62527289,0.00010889,2]
[333171474,1721913032909,-1560.88282711,0.00010889,2]
[333171475,1721913032919,-297.98608055,0.00010899,2]
[333171476,1721913032928,-209.2893539,0.00010899,2]
[333171477,1721913032938,-199.61700078,0.00010899,2]
[333171478,1721913032948,-199.61700069,0.00010899,2]
[333171479,1721913032958,-199.61700069,0.00010899,2]
[333171480,1721913032967,-116.39632674,0.00010899,2]
[333171481,1721913032984,-83.22067395,0.00010899,2]
[333171482,1721913032993,-199.61700069,0.00010899,2]
[333171483,1721913033002,-199.61700069,0.00010899,2]
[333171484,1721913033012,-35.40043672,0.00010899,2]
[333171485,1721913033024,-164.21656397,0.00010899,2]
[333171486,1721913033037,-199.61700069,0.00010899,2]
[333171487,1721913033046,-199.61700069,0.00010899,2]
[333171488,1721913033056,-257.42352334,0.000109,2]
[333171507,1721913038211,-293.73964463,0.000109,2]
[333171508,1721913038222,-1740.85172816,0.000109,3]
[333171509,1721913038234,-355.55693075,0.000109,3]
[333171510,1721913038570,-6343.80348218,0.000109,3]
[333171511,1721913038587,-281.55,0.000109,3]
[333171512,1721913038610,-12827.0,0.000109,3]
[333171513,1721913038622,-289.4002629,0.000109,3]
[333171514,1721913038637,-18716.99087636,0.000109,3]
[333171527,1721913040339,-300.51216903,0.000109,3]
[333171528,1721913040405,-69082.33455062,0.000109,3]
[333171529,1721913040415,-171.61014676,0.000109,2]
[333171530,1721913040424,-204.83786661,0.000109,2]
[333171531,1721913040433,-194.85349123,0.000109,2]
[333171532,1721913040443,-199.61700069,0.000109,2]
[333171533,1721913040452,-344.13,0.00010904,2]
[333171534,1721913040463,-706.56732294,0.00010907,2]
[333171535,1721913040476,-500.0,0.00010911,2]
[333171536,1721913040485,-500.0,0.00010912,2]
[333171537,1721913040494,-255.0,0.00010948,2]
[333171538,1721913040504,-500.0,0.00010958,2]
[333171539,1721913040513,-500.0,0.00010958,2]
[333171540,1721913040523,-500.0,0.00010958,2]
[333171541,1721913040532,-500.0,0.00010958,2]
[333171542,1721913040544,-500.0,0.00010958,2]
[333171543,1721913040553,-500.0,0.00010958,2]
[333171544,1721913040562,-500.0,0.00010958,2]
[333171545,1721913040571,-500.0,0.00010958,2]
[333171546,1721913040580,-500.0,0.00010958,2]
[333171547,1721913040590,-500.0,0.00010958,2]
[333171548,1721913040599,-500.0,0.00010958,2]
[333171549,1721913040608,-500.0,0.00010958,2]
[333171550,1721913040617,-500.0,0.00010958,2]
[333171551,1721913040626,-828.7,0.00010958,2]
[333171552,1721913040636,-500.0,0.00010958,2]
[333171553,1721913040645,-500.0,0.00010958,2]
[333171554,1721913040655,-500.0,0.00010958,2]
[333171555,1721913040664,-500.0,0.00010958,2]
[333171556,1721913040673,-500.0,0.00010958,2]
[333171557,1721913040683,-500.0,0.00010958,2]
[333171558,1721913040691,-500.0,0.00010958,2]
[333171559,1721913040700,-250.0,0.00010959,2]
[333171561,1721913040709,-500.0,0.00010978,2]
[333171563,1721913040719,-500.0,0.00010978,2]
[333171565,1721913040728,-500.0,0.00010978,2]
[333171567,1721913040737,-500.0,0.00010978,2]
[333171569,1721913040746,-649.03156801,0.00010978,2]
[333171571,1721913040755,-500.0,0.00010978,2]
[333171573,1721913040764,-500.0,0.00010978,2]
[333171575,1721913040773,-500.0,0.00010978,2]
[333171577,1721913040782,-500.0,0.00010978,2]
[333171579,1721913040794,-256.15,0.00010978,2]
[333171581,1721913040804,-500.0,0.00010978,2]
[333171583,1721913040813,-500.0,0.00010978,2]
[333171585,1721913040822,-500.0,0.00010978,2]
[333171587,1721913040831,-500.0,0.00010978,2]
[333171589,1721913040841,-620.3,0.00010978,2]
[333171591,1721913040850,-500.0,0.00010978,2]
[333171593,1721913040859,-500.0,0.00010978,2]
[333171595,1721913040868,-279.78330525,0.00010978,2]
[333171597,1721913040877,-500.0,0.00010978,2]
[333171599,1721913040886,-500.0,0.00010978,2]
[333171601,1721913040896,-500.0,0.00010978,2]
[333171603,1721913040905,-500.0,0.00010978,2]
[333171605,1721913040914,-500.0,0.00010978,2]
[333171607,1721913040923,-500.0,0.00010978,2]
[333171609,1721913040933,-500.0,0.00010978,2]
[333171611,1721913040942,-500.0,0.00010978,2]
[333171613,1721913040951,-500.0,0.00010978,2]
[333171615,1721913040960,-500.0,0.00010978,2]
[333171617,1721913040969,-500.0,0.00010978,2]
[333171618,1721913040979,-500.0,0.00010978,2]
[333171620,1721913040988,-500.0,0.00010978,2]
[333171623,1721913040997,-500.0,0.00010978,2]
[333171625,1721913041007,-500.0,0.00010978,2]
[333171627,1721913041016,-500.0,0.00010978,2]
[333171629,1721913041025,-503.34219601,0.00010978,2]
[333171630,1721913041034,-500.0,0.00010978,2]
[333171633,1721913041047,-541.83,0.00010978,2]
[333171635,1721913041058,-500.0,0.00010978,2]
[333171637,1721913041067,-500.0,0.00010978,2]
[333171639,1721913041076,-500.0,0.00010978,2]
[333171641,1721913041085,-500.0,0.00010978,2]
[333171643,1721913041096,-500.0,0.00010978,2]
[333171645,1721913041106,-500.0,0.00010978,2]
[333171647,1721913041115,-500.0,0.00010978,2]
[333171649,1721913041125,-569.91,0.00010978,2]
[333171651,1721913041135,-500.0,0.00010978,2]
[333171653,1721913041145,-500.0,0.00010978,2]
[333171655,1721913041155,-500.0,0.00010978,2]
[333171657,1721913041164,-365.29349153,0.00010978,2]
[333171659,1721913041174,-559.06,0.00010978,2]
[333171661,1721913041184,-500.0,0.00010978,2]
[333171663,1721913041193,-500.0,0.00010978,2]
[333171665,1721913041203,-500.0,0.00010978,2]
[333171667,1721913041212,-501.20889784,0.00010978,2]
[333171669,1721913041222,-500.0,0.00010978,2]
[333171671,1721913041231,-500.0,0.00010978,2]
[333171672,1721913041240,-500.0,0.00010978,2]
[333171674,1721913041249,-500.0,0.00010978,2]
[333171676,1721913041258,-500.0,0.00010978,2]
[333171678,1721913041267,-500.0,0.00010978,2]
[333171680,1721913041278,-500.00446953,0.00010978,2]
[333171682,1721913041287,-426.45341624,0.00010978,2]
[333171684,1721913041301,-501.38266698,0.00010978,2]
[333171686,1721913041309,-500.0,0.00010978,2]
[333171687,1721913041319,-500.0,0.00010978,2]
[333171689,1721913041328,-500.0,0.00010978,2]
[333171691,1721913041337,-500.0,0.00010978,2]
[333171693,1721913041346,-500.0,0.00010978,2]
[333171695,1721913041355,-416.0,0.00010978,2]
[333171697,1721913041365,-500.0,0.00010978,2]
[333171699,1721913041373,-500.0,0.00010978,2]
[333171701,1721913041383,-500.0,0.00010978,2]
[333171703,1721913041391,-500.0,0.00010978,2]
[333171705,1721913041401,-1080.35,0.00010978,2]
[333171706,1721913041410,-500.0,0.00010978,2]
[333171708,1721913041419,-500.0,0.00010978,2]
[333171710,1721913041428,-500.0,0.00010978,2]
[333171712,1721913041437,-505.83923712,0.00010978,2]
[333171714,1721913041446,-500.0,0.00010978,2]
[333171716,1721913041455,-500.0,0.00010978,2]
[333171718,1721913041467,-500.0,0.00010978,2]
[333171720,1721913041477,-500.0,0.00010978,2]
[333171722,1721913041486,-500.0,0.00010978,2]
[333171724,1721913041495,-500.0,0.00010978,2]
[333171726,1721913041504,-500.0,0.00010978,2]
[333171728,1721913041514,-500.0,0.00010978,2]
[333171730,1721913041523,-500.0,0.00010978,2]
[333171732,1721913041532,-500.0,0.00010978,2]
[333171733,1721913041543,-500.0,0.00010978,2]
[333171734,1721913041552,-1027.29,0.00010978,2]
[333171735,1721913041561,-500.0,0.00010978,2]
[333171736,1721913041570,-500.0,0.00010978,2]
[333171737,1721913041579,-500.0,0.00010978,2]
[333171738,1721913041588,-500.0,0.00010978,2]
[333171739,1721913041597,-500.0,0.00010978,2]
[333171740,1721913041607,-500.0,0.00010978,2]
[333171741,1721913041616,-500.0,0.00010978,2]
[333171742,1721913041625,-500.0,0.00010978,2]
[333171743,1721913041634,-500.0,0.00010978,2]
[333171744,1721913041643,-515.05821505,0.00010978,2]
[333171745,1721913041652,-3865.42,0.00010978,2]
[333171746,1721913041661,-500.99805629,0.00010978,2]
[333171747,1721913041670,-500.0,0.00010978,2]
[333171748,1721913041680,-500.0,0.00010978,2]
[333171749,1721913041689,-500.0,0.00010978,2]
[333171750,1721913041698,-500.0,0.00010978,2]
[333171751,1721913041707,-500.0,0.00010978,2]
[333171752,1721913041716,-505.69219461,0.00010978,2]
[333171753,1721913041725,-500.0,0.00010978,2]
[333171754,1721913041734,-500.0,0.00010978,2]
[333171755,1721913041743,-500.0,0.00010978,2]
[333171756,1721913041752,-500.0,0.00010978,2]
[333171757,1721913041761,-500.0,0.00010978,2]
[333171758,1721913041770,-300.0,0.00010979,2]
[333171759,1721913041779,-466.95791808,0.00010979,2]
[333171760,1721913041789,-500.0,0.00010979,2]
[333171761,1721913041801,-500.0,0.00010979,2]
[333171762,1721913041810,-500.0,0.00010979,2]
[333171763,1721913041819,-177.72,0.00010979,2]
[333171764,1721913041827,-433.0746308,0.00010979,2]
[333171765,1721913041836,-500.0,0.00010979,2]
[333171766,1721913041846,-363.34,0.00010979,2]
[333171767,1721913041855,-268.63,0.00010979,2]
[333171768,1721913041864,-500.0,0.00010979,2]
[333171769,1721913041873,-535.53,0.00010979,2]
[333171770,1721913041882,-500.0,0.00010979,2]
[333171771,1721913041891,-257.94,0.00010979,2]
[333171772,1721913041901,-500.0,0.00010979,2]
[333171773,1721913041910,-412.03,0.00010979,2]
[333171774,1721913041919,-500.0,0.00010979,2]
[333171775,1721913041929,-270.35,0.00010979,2]
[333171776,1721913041938,-500.0,0.00010979,2]
[333171777,1721913041948,-500.0,0.00010979,2]
[333171778,1721913041958,-621.44,0.00010979,2]
[333171779,1721913041967,-500.0,0.00010979,2]
[333171780,1721913041976,-500.0,0.00010979,2]
[333171781,1721913041985,-500.0,0.00010979,2]
[333171782,1721913041994,-500.0,0.00010979,2]
[333171783,1721913042004,-500.0,0.00010979,2]
[333171784,1721913042013,-500.0,0.00010979,2]
[333171785,1721913042022,-500.0,0.00010979,2]
[333171786,1721913042032,-312.04,0.00010979,2]
[333171787,1721913042045,-276.12780285,0.00010979,2]
[333171788,1721913042055,-500.0,0.00010979,2]
[333171789,1721913042066,-500.0,0.00010979,2]
[333171790,1721913042075,-500.0,0.00010979,2]
[333171791,1721913042085,-500.0,0.00010979,2]
[333171792,1721913042094,-242.79,0.00010979,2]
[333171793,1721913042103,-500.0,0.00010979,2]
[333171794,1721913042112,-500.0,0.00010979,2]
[333171795,1721913042122,-500.0,0.00010979,2]
[333171796,1721913042132,-500.0,0.00010979,2]
[333171797,1721913042141,-33706.20228082,0.0001098,5]
[333171798,1721913042150,-3000.0,0.0001098,2]
[333171799,1721913042160,-9795.57000778,0.0001099,2]
[333171800,1721913042169,-828.7,0.00010996,2]
[333171801,1721913042178,-500.0,0.00010996,2]
[333171802,1721913042187,-500.0,0.00010996,2]
[333171803,1721913042196,-500.0,0.00010996,2]
[333171804,1721913042206,-293.38835605,0.00010996,2]
[333171805,1721913042214,-500.0,0.00010997,2]
[333171806,1721913042224,-500.0,0.00010997,2]
[333171807,1721913042233,-500.0,0.00010997,2]
[333171808,1721913042242,-500.0,0.00010997,2]
[333171809,1721913042251,-336.52671,0.00010997,2]
[333171810,1721913042261,-500.0,0.00010997,2]
[333171811,1721913042270,-500.0,0.00010997,2]
[333171812,1721913042279,-500.0,0.00010997,2]
[333171813,1721913042289,-500.0,0.00010998,2]
[333171814,1721913042301,-461.3332095,0.00010998,2]
[333171815,1721913042310,-500.0,0.00010998,2]
[333171816,1721913042320,-301.5,0.00010998,2]
[333171817,1721913042332,-500.0,0.00010998,2]
[333171818,1721913042342,-500.0,0.00010998,2]
[333171819,1721913042351,-483.06,0.00010998,2]
[333171820,1721913042360,-500.0,0.00010998,2]
[333171821,1721913042369,-228.38,0.00010998,2]
[333171822,1721913042378,-329.12,0.00010998,2]
[333171823,1721913042387,-484.21,0.00010998,2]
[333171824,1721913042396,-500.0,0.00010998,2]
[333171825,1721913042405,-422.88,0.00010998,2]
[333171826,1721913042415,-500.0,0.00010998,2]
[333171827,1721913042424,-442.62,0.00010998,2]
[333171828,1721913042434,-500.0,0.00010998,2]
[333171829,1721913042444,-515.1,0.00010998,2]
[333171830,1721913042453,-500.0,0.00010998,2]
[333171831,1721913042463,-500.0,0.00010998,2]
[333171832,1721913042476,-500.0,0.00010998,2]
[333171833,1721913042485,-167.6,0.00010998,2]
[333171834,1721913042495,-500.0,0.00010998,2]
[333171835,1721913042505,-500.0,0.00010998,2]
[333171836,1721913042514,-500.0,0.00010998,2]
[333171837,1721913042522,-500.0,0.00010998,2]
[333171838,1721913042532,-418.05,0.00010998,2]
[333171839,1721913042541,-558.6,0.00010998,2]
[333171840,1721913042553,-500.0,0.00010998,2]
[333171841,1721913042563,-500.0,0.00010998,2]
[333171842,1721913042572,-1080.35,0.00010998,2]
[333171843,1721913042581,-500.0,0.00010998,2]
[333171844,1721913042590,-500.0,0.00010998,2]
[333171845,1721913042600,-500.0,0.00010998,2]
[333171846,1721913042610,-500.0,0.00010998,2]
[333171847,1721913042619,-500.0,0.00010998,2]
[333171848,1721913042824,-500.0,0.00010998,2]
[333171849,1721913042834,-347.53356448,0.00010998,2]
[333171850,1721913042843,-500.0,0.00010998,2]
[333171851,1721913042853,-500.0,0.00010998,2]
[333171852,1721913042863,-500.0,0.00010998,2]
[333171853,1721913042872,-500.0,0.00010998,2]
[333171854,1721913042881,-500.0,0.00010998,2]
[333171855,1721913042890,-500.0,0.00010998,2]
[333171856,1721913042899,-500.0,0.00010998,2]
[333171857,1721913042908,-500.0,0.00010998,2]
[333171858,1721913042918,-500.0,0.00010998,2]
[333171860,1721913042927,-500.0,0.00010998,2]
[333171861,1721913042936,-1027.29,0.00010998,2]
[333171862,1721913042946,-500.0,0.00010998,2]
[333171863,1721913042957,-500.0,0.00010998,2]
[333171864,1721913042967,-500.0,0.00010998,2]
[333171865,1721913042976,-500.0,0.00010998,2]
[333171866,1721913042986,-828.7,0.00010998,2]
[333171867,1721913042995,-500.0,0.00010998,2]
[333171868,1721913043005,-500.0,0.00010998,2]
[333171869,1721913043014,-500.0,0.00010998,2]
[333171870,1721913043024,-500.0,0.00010998,2]
[333171871,1721913043033,-3865.42,0.00010998,2]
[333171873,1721913043046,-500.0,0.00010998,2]
[333171874,1721913043056,-500.0,0.00010998,2]
[333171875,1721913043065,-500.0,0.00010998,2]
[333171876,1721913043075,-500.0,0.00010998,2]
[333171877,1721913043084,-486.82676831,0.00010998,2]
[333171878,1721913043094,-218.59,0.00010998,2]
[333171879,1721913043104,-500.0,0.00010998,2]
[333171880,1721913043114,-500.0,0.00010998,2]
[333171881,1721913043123,-500.0,0.00010998,2]
[333171882,1721913043133,-500.0,0.00010998,2]
[333171883,1721913043142,-500.0,0.00010998,2]
[333171885,1721913043152,-500.0,0.00010999,2]
[333171887,1721913043162,-500.0,0.00010999,2]
[333171889,1721913043172,-189.65596498,0.00010999,2]
[333171891,1721913043181,-201.76554012,0.00010999,3]
[333171893,1721913043191,-501.14993689,0.00010999,2]
[333171894,1721913043201,-303.13610562,0.00010999,2]
[333171895,1721913043210,-1064.40851654,0.00010999,3]
[333171896,1721913043219,-500.0,0.00010999,2]
[333171897,1721913043229,-500.0,0.00010999,2]
[333171898,1721913043239,-500.0,0.00010999,2]
[333171899,1721913043249,-348.44,0.00010999,2]
[333171900,1721913043259,-425.08,0.00010999,2]
[333171901,1721913043269,-153.89,0.00010999,2]
[333171902,1721913043278,-339.89,0.00010999,2]
[333171903,1721913043291,-500.0,0.00010999,2]
[333171904,1721913043301,-560.02,0.00010999,2]
[333171905,1721913043311,-500.0,0.00010999,2]
[333171906,1721913043320,-500.0,0.00010999,2]
[333171907,1721913043330,-500.0,0.00010999,2]
[333171908,1721913043340,-500.0,0.00010999,2]
[333171909,1721913043350,-500.0,0.00010999,2]
[333171910,1721913043359,-431.12020773,0.00010999,2]
[333171911,1721913043369,-500.0,0.00010999,2]
[333171912,1721913043378,-500.0,0.00010999,2]
[333171913,1721913043388,-635.57372229,0.00010999,2]
[333171914,1721913043397,-290.05,0.00010999,2]
[333171915,1721913043407,-500.0,0.00010999,2]
[333171916,1721913043416,-500.0,0.00010999,2]
[333171917,1721913043426,-177.7,0.00010999,2]
[333171918,1721913043435,-500.0,0.00010999,2]
[333171919,1721913043444,-500.0,0.00010999,2]
[333171920,1721913043453,-500.0,0.00010999,2]
[333171921,1721913043465,-500.0,0.00010999,2]
[333171922,1721913043476,-500.0,0.00010999,2]
[333171923,1721913043486,-500.0,0.00010999,2]
[333171924,1721913043495,-237.29186779,0.00010999,2]
[333171925,1721913043504,-500.0,0.00010999,2]
[333171926,1721913043513,-500.0,0.00010999,2]
[333171927,1721913043522,-500.0,0.00010999,2]
[333171928,1721913043531,-500.0,0.00010999,2]
[333171929,1721913043543,-500.0,0.00010999,2]
[333171930,1721913043552,-500.0,0.00010999,2]
[333171931,1721913043562,-500.0,0.00010999,2]
[333171932,1721913043571,-432.8,0.00010999,2]
[333171933,1721913043581,-500.0,0.00010999,2]
[333171934,1721913043591,-500.0,0.00010999,2]
[333171935,1721913043600,-500.0,0.00010999,2]
[333171936,1721913043609,-606.18330642,0.00010999,2]
[333171937,1721913043619,-541.85936444,0.00010999,2]
[333171938,1721913043629,-608.43,0.00010999,2]
[333171939,1721913043638,-500.0,0.00010999,2]
[333171940,1721913043648,-182.53588726,0.00010999,2]
[333171941,1721913043658,-1080.35,0.00010999,2]
[333171942,1721913043667,-1080.35,0.00010999,2]
[333171943,1721913043677,-422.49457321,0.00010999,2]
[333171944,1721913043694,-657.85542679,0.00010999,2]
[333171945,1721913043703,-1080.35,0.00010999,2]
[333171946,1721913043713,-507.96640888,0.00010999,2]
[333171947,1721913043733,-572.38359112,0.00010999,2]
[333171948,1721913043743,-1080.35,0.00010999,2]
[333171949,1721913043753,-1080.35,0.00010999,2]
[333171950,1721913043762,-1080.35,0.00010999,2]
[333171952,1721913043772,-1080.35,0.00010999,2]
[333171953,1721913043781,-1080.35,0.00010999,2]
[333171955,1721913043792,-1080.35,0.00010999,2]
[333171956,1721913043802,-1080.35,0.00010999,2]
[333171957,1721913043812,-1080.35,0.00010999,2]
[333171958,1721913043822,-1080.35,0.00010999,2]
[333171959,1721913043831,-1080.35,0.00010999,2]
[333171960,1721913043841,-1080.35,0.00010999,2]
[333171961,1721913043851,-1080.35,0.00010999,2]
[333171962,1721913043860,-1080.35,0.00010999,2]
[333171963,1721913043870,-1080.35,0.00010999,2]
[333171964,1721913043879,-1080.35,0.00010999,2]
[333171965,1721913043888,-1080.35,0.00010999,2]
[333171966,1721913043897,-1080.44588673,0.00010999,2]
[333171967,1721913043907,-500.0,0.00010999,2]
[333171968,1721913043917,-500.0,0.00010999,2]
[333171969,1721913043927,-500.0,0.00010999,2]
[333171970,1721913043937,-500.0,0.00010999,2]
[333171971,1721913043947,-500.0,0.00010999,2]
[333171972,1721913043956,-500.0,0.00010999,2]
[333171973,1721913043966,-500.0,0.00010999,2]
[333171974,1721913043976,-500.0,0.00010999,2]
[333171975,1721913043985,-500.0,0.00010999,2]
[333171976,1721913043995,-500.0,0.00010999,2]
[333171977,1721913044004,-500.0,0.00010999,2]
[333171978,1721913044014,-500.0,0.00010999,2]
[333171979,1721913044024,-358.7619601,0.00010999,2]
[333171980,1721913044034,-403.91815762,0.00010999,2]
[333171981,1721913044046,-500.0,0.00010999,2]
[333171982,1721913044056,-500.0,0.00010999,2]
[333171983,1721913044065,-500.0,0.00010999,2]
[333171984,1721913044075,-500.0,0.00010999,2]
[333171985,1721913044085,-500.0,0.00010999,2]
[333171986,1721913044095,-500.0,0.00010999,2]
[333171987,1721913044104,-500.0,0.00010999,2]
[333171988,1721913044114,-500.0,0.00010999,2]
[333171989,1721913044124,-500.0,0.00010999,2]
[333171990,1721913044134,-500.0,0.00010999,2]
[333171991,1721913044144,-500.0,0.00010999,2]
[333171992,1721913044154,-500.0,0.00010999,2]
[333171993,1721913044164,-500.0,0.00010999,2]
[333171994,1721913044174,-500.0,0.00010999,2]
[333171995,1721913044183,-452.86995651,0.00010999,2]
[333171996,1721913044193,-500.0,0.00010999,2]
[333171997,1721913044203,-500.0,0.00010999,2]
[333171998,1721913044212,-500.0,0.00010999,2]
[333171999,1721913044222,-500.0,0.00010999,2]
[333172000,1721913044231,-500.0,0.00010999,2]
[333172001,1721913044241,-500.0,0.00010999,2]
[333172002,1721913044250,-513.71782387,0.00010999,2]
[333172003,1721913044259,-500.0,0.00010999,2]
[333172004,1721913044269,-500.0,0.00010999,2]
[333172005,1721913044278,-500.0,0.00010999,2]
[333172006,1721913044288,-500.0,0.00010999,2]
[333172007,1721913044300,-500.0,0.00010999,2]
[333172008,1721913044310,-500.0,0.00010999,2]
[333172009,1721913044320,-500.0,0.00010999,2]
[333172010,1721913044330,-500.0,0.00010999,2]
[333172011,1721913044340,-500.0,0.00010999,2]
[333172012,1721913044350,-500.0,0.00010999,2]
[333172013,1721913044359,-500.0,0.00010999,2]
[333172014,1721913044369,-500.0,0.00010999,2]
[333172015,1721913044379,-500.0,0.00010999,2]
[333172016,1721913044388,-500.0,0.00010999,2]
[333172017,1721913044398,-500.0,0.00010999,2]
[333172018,1721913044408,-341.56999694,0.00010999,2]
[333172019,1721913044417,-500.0,0.00010999,2]
[333172020,1721913044427,-500.0,0.00010999,2]
[333172021,1721913044436,-500.0,0.00010999,2]
[333172022,1721913044446,-500.0,0.00010999,2]
[333172023,1721913044455,-500.0,0.00010999,2]
[333172024,1721913044471,-457.00852587,0.00010999,2]
[333172025,1721913044480,-500.0,0.00010999,2]
[333172026,1721913044490,-500.0,0.00010999,2]
[333172027,1721913044500,-500.0,0.00010999,2]
[333172028,1721913044511,-500.0,0.00010999,2]
[333172029,1721913044521,-500.0,0.00010999,2]
[333172030,1721913044530,-500.0,0.00010999,2]
[333172031,1721913044545,-500.0,0.00010999,2]
[333172032,1721913044555,-500.0,0.00010999,2]
[333172033,1721913044565,-500.0,0.00010999,2]
[333172034,1721913044574,-500.0,0.00010999,2]